fUSD/lending_fUSD_20250812
["ID","MTS","AMOUNT","RATE_DAILY","PERIOD"]
[378812191,1755033052777,-402.30824358,0.00049315,120]
[378812192,1755033052786,-400.0,0.00049315,120]
[378812193,1755033052796,-400.0,0.00049315,120]
[378812194,1755033052806,-764.81,0.00049315,120]
[378812195,1755033052815,-400.0,0.00049315,120]
[378812196,1755033052824,-402.66181787,0.00049315,120]
[378812197,1755033052833,-400.0,0.00049315,120]
[378812198,1755033052843,-400.0,0.00049315,120]
[378812199,1755033052855,-400.0,0.00049315,120]
[378812200,1755033052865,-400.0,0.00049315,120]
[378812201,1755033052875,-400.0,0.00049315,120]
[378812202,1755033052884,-400.0,0.00049315,120]
[378812203,1755033052894,-486.47,0.00049315,120]
[378812204,1755033052903,-400.0,0.00049315,120]
[378812205,1755033052913,-400.0,0.00049315,120]
[378812206,1755033052923,-300.0,0.00049315,120]
[378812207,1755033052933,-1157.18,0.00049315,120]
[378812208,1755033052942,-400.0,0.00049315,120]
[378812209,1755033052952,-400.0,0.00049315,120]
[378812210,1755033052962,-794.64,0.00049315,120]
[378812211,1755033052971,-989.78,0.00049315,120]
[378812212,1755033052981,-400.0,0.00049315,120]
[378812213,1755033052991,-400.0,0.00049315,120]
[378812214,1755033053001,-531.33,0.00049315,120]
[378812215,1755033053011,-708.32,0.00049315,120]
[378812216,1755033053023,-404.89745956,0.00049315,120]
[378812217,1755033053038,-400.0,0.00049315,120]
[378812218,1755033053052,-400.0,0.00049315,120]
[378812219,1755033053062,-400.0,0.00049315,120]
[378812220,1755033053071,-400.0,0.00049315,120]
[378812221,1755033053080,-890.0,0.00049315,120]
[378812222,1755033053089,-400.0,0.00049315,120]
[378812223,1755033053098,-400.0,0.00049315,120]
[378812224,1755033053107,-400.0,0.00049315,120]
[378812225,1755033053116,-400.0,0.00049315,120]
[378812226,1755033053127,-697.03,0.00049315,120]
[378812227,1755033053136,-400.0,0.00049315,120]
[378812228,1755033053145,-495.14,0.00049315,120]
[378812229,1755033053155,-400.0,0.00049315,120]
[378812230,1755033053164,-400.0,0.00049315,120]
[378812231,1755033053174,-400.0,0.00049315,120]
[378812232,1755033053188,-1088.01,0.00049315,120]
[378812233,1755033053198,-400.0,0.00049315,120]
[378812234,1755033053208,-400.0,0.00049315,120]
[378812235,1755033053218,-616.62,0.00049315,120]
[378812236,1755033053228,-542.57,0.00049315,120]
[378812237,1755033053237,-400.0,0.00049315,120]
[378812238,1755033053247,-400.0,0.00049315,120]
[378812239,1755033053256,-400.0,0.00049315,120]
[378812240,1755033053266,-400.0,0.00049315,120]
[378812241,1755033053275,-400.0,0.00049315,120]
[378812242,1755033053284,-400.0,0.00049315,120]
[378812243,1755033053294,-400.0,0.00049315,120]
[378812244,1755033053305,-400.0,0.00049315,120]
[378812245,1755033053315,-400.0,0.00049315,120]
[378812246,1755033053324,-400.0,0.00049315,120]
[378812247,1755033053334,-400.0,0.00049315,120]
[378812248,1755033053343,-1117.75,0.00049315,120]
[378812249,1755033053353,-500.0,0.00049315,2]
[378812250,1755033053363,-151.0,0.00049315,30]
[378812251,1755033053372,-502.68615066,0.00049315,2]
[378812252,1755033053383,-400.0,0.00049315,120]
[378812253,1755033053393,-470.9353927,0.00049315,120]
[378812254,1755033053402,-169.61,0.00049315,120]
[378812255,1755033053412,-400.0,0.00049315,120]
[378812256,1755033053423,-1408.25,0.00049315,120]
[378812257,1755033053434,-400.0,0.00049315,120]
[378812258,1755033053443,-400.0,0.00049315,120]
[378812259,1755033053453,-400.0,0.00049315,120]
[378812260,1755033053463,-400.0,0.00049315,120]
[378812261,1755033053472,-400.0,0.00049315,120]
[378812262,1755033053482,-400.0,0.00049315,120]
[378812263,1755033053492,-400.0,0.00049315,120]
[378812264,1755033053502,-400.0,0.00049315,120]
[378812265,1755033053512,-400.0,0.00049315,120]
[378812266,1755033053522,-673.52,0.00049315,120]
[378812267,1755033053532,-437.68,0.00049315,120]
[378812268,1755033053541,-404.65,0.00049315,120]
[378812269,1755033053551,-491.12,0.00049315,120]
[378812270,1755033053560,-499.98,0.00049315,120]
[378812271,1755033053570,-400.0,0.00049315,120]
[378812272,1755033053579,-400.0,0.00049315,120]
[378812273,1755033053589,-400.0,0.00049315,120]
[378812274,1755033053599,-151.0,0.00049315,30]
[378812275,1755033053609,-400.0,0.00049315,120]
[378812276,1755033053618,-557.29,0.00049315,120]
[378812277,1755033053628,-407.91921466,0.00049315,120]
[378812278,1755033053637,-881.37,0.00049315,120]
[378812279,1755033053647,-400.0,0.00049315,120]
[378812280,1755033053657,-400.0,0.00049315,120]
[378812281,1755033053668,-400.0,0.00049315,120]
[378812282,1755033053679,-1588.95,0.00049315,120]
[378812283,1755033053689,-236.235444,0.00049315,30]
[378812284,1755033053699,-400.0,0.00049315,120]
[378812285,1755033053708,-400.0,0.00049315,120]
[378812286,1755033053718,-400.0,0.00049315,120]
[378812287,1755033053728,-402.22427087,0.00049315,120]
[378812288,1755033053738,-151.544187,0.00049315,30]
[378812289,1755033053749,-400.0,0.00049315,120]
[378812290,1755033053759,-400.0,0.00049315,120]
[378812291,1755033053771,-400.0,0.00049315,120]
[378812292,1755033053780,-400.0,0.00049315,120]
[378812293,1755033053790,-400.0,0.00049315,120]
[378812294,1755033053801,-400.0,0.00049315,120]
[378812295,1755033053811,-400.0,0.00049315,120]
[378812296,1755033053821,-400.0,0.00049315,120]
[378812297,1755033053831,-400.0,0.00049315,120]
[378812298,1755033053842,-400.0,0.00049315,120]
[378812299,1755033053852,-429.53611488,0.00049315,120]
[378812300,1755033053862,-400.0,0.00049315,120]
[378812301,1755033053871,-400.0,0.00049315,120]
[378812302,1755033053881,-500.0,0.00049315,120]
[378812303,1755033053890,-400.0,0.00049315,120]
[378812304,1755033053900,-500.0,0.00049315,120]
[378812305,1755033053910,-400.0,0.00049315,120]
[378812306,1755033053920,-500.0,0.00049315,120]
[378812307,1755033053932,-400.0,0.00049315,120]
[378812308,1755033053941,-462.64,0.00049315,120]
[378812309,1755033053950,-400.0,0.00049315,120]
[378812310,1755033053960,-400.0,0.00049315,120]
[378812311,1755033053970,-400.0,0.00049315,120]
[378812312,1755033053979,-401.53220541,0.00049315,120]
[378812313,1755033053990,-400.0,0.00049315,120]
[378812314,1755033054000,-630.46,0.00049315,120]
[378812315,1755033054009,-400.0,0.00049315,120]
[378812316,1755033054018,-588.9,0.00049315,120]
[378812317,1755033054028,-400.0,0.00049315,120]
[378812318,1755033054037,-1649.83,0.00049315,120]
[378812319,1755033054047,-400.0,0.00049315,120]
[378812320,1755033054056,-400.0,0.00049315,120]
[378812321,1755033054065,-400.0,0.00049315,120]
[378812322,1755033054075,-400.0,0.00049315,120]
[378812323,1755033054084,-400.0,0.00049315,120]
[378812324,1755033054093,-400.0,0.00049315,120]
[378812325,1755033054103,-400.0,0.00049315,120]
[378812326,1755033054112,-400.0,0.00049315,120]
[378812327,1755033054122,-719.98,0.00049315,120]
[378812328,1755033054131,-400.0,0.00049315,120]
[378812329,1755033054141,-400.0,0.00049315,120]
[378812330,1755033054150,-407.14220471,0.00049315,120]
[378812331,1755033054159,-402.18472483,0.00049315,120]
[378812332,1755033054169,-400.0,0.00049315,120]
[378812333,1755033054178,-400.0,0.00049315,120]
[378812334,1755033054188,-442.96,0.00049315,120]
[378812335,1755033054198,-400.0,0.00049315,120]
[378812336,1755033054207,-400.0,0.00049315,120]
[378812337,1755033054216,-400.0,0.00049315,120]
[378812338,1755033054225,-400.0,0.00049315,120]
[378812339,1755033054235,-693.59,0.00049315,120]
[378812340,1755033054244,-693.59,0.00049315,120]
[378812341,1755033054254,-693.59,0.00049315,120]
[378812342,1755033054263,-693.59,0.00049315,120]
[378812343,1755033054273,-693.59,0.00049315,120]
[378812344,1755033054282,-400.0,0.00049315,120]
[378812345,1755033054291,-693.59,0.00049315,120]
[378812346,1755033054302,-400.0,0.00049315,120]
[378812347,1755033054313,-400.0,0.00049315,120]
[378812348,1755033054323,-693.59,0.00049315,120]
[378812349,1755033054332,-693.59,0.00049315,120]
[378812350,1755033054341,-693.59,0.00049315,120]
[378812351,1755033054351,-400.0,0.00049315,120]
[378812352,1755033054361,-693.59,0.00049315,120]
[378812353,1755033054370,-693.59,0.00049315,120]
[378812354,1755033054381,-693.59,0.00049315,120]
[378812355,1755033054400,-693.59,0.00049315,120]
[378812356,1755033054410,-400.0,0.00049315,120]
[378812357,1755033054419,-151.0,0.00049315,30]
[378812358,1755033054428,-400.0,0.00049315,120]
[378812359,1755033054439,-693.59,0.00049315,120]
[378812360,1755033054448,-693.59,0.00049315,120]
[378812361,1755033054457,-693.59,0.00049315,120]
[378812362,1755033054467,-400.08706689,0.00049315,120]
[378812363,1755033054477,-693.59,0.00049315,120]
[378812364,1755033054486,-693.59,0.00049315,120]
[378812365,1755033054496,-400.0,0.00049315,120]
[378812366,1755033054506,-693.59,0.00049315,120]
[378812367,1755033054515,-693.59,0.00049315,120]
[378812368,1755033054525,-400.0,0.00049315,120]
[378812369,1755033054534,-400.0,0.00049315,120]
[378812370,1755033054544,-460.0,0.00049315,120]
[378812371,1755033054553,-693.59,0.00049315,120]
[378812372,1755033054563,-693.59,0.00049315,120]
[378812373,1755033054572,-693.59,0.00049315,120]
[378812374,1755033054582,-401.73983687,0.00049315,120]
[378812375,1755033054591,-693.67613697,0.00049315,120]
[378812376,1755033054601,-400.0,0.00049315,120]
[378812377,1755033054611,-1000.4,0.00049315,120]
[378812378,1755033054620,-400.0,0.00049315,120]
[378812379,1755033054630,-750.4,0.00049315,120]
[378812380,1755033054640,-400.0,0.00049315,120]
[378812381,1755033054649,-1152.11,0.00049315,120]
[378812382,1755033054659,-400.0,0.00049315,120]
[378812383,1755033054668,-713.4,0.00049315,120]
[378812384,1755033054678,-400.0,0.00049315,120]
[378812385,1755033054689,-400.0,0.00049315,120]
[378812386,1755033054699,-400.0,0.00049315,120]
[378812387,1755033054708,-400.0,0.00049315,120]
[378812388,1755033054718,-460.83809189,0.00049315,120]
[378812389,1755033054727,-400.0,0.00049315,120]
[378812390,1755033054737,-400.0,0.00049315,120]
[378812391,1755033054746,-532.67,0.00049315,120]
[378812392,1755033054755,-606.94,0.00049315,30]
[378812393,1755033054765,-400.0,0.00049315,120]
[378812394,1755033054775,-400.0,0.00049315,120]
[378812395,1755033054784,-400.0,0.00049315,120]
[378812396,1755033054793,-403.05358335,0.00049315,120]
[378812397,1755033054803,-431.35,0.00049315,120]
[378812398,1755033054812,-400.0,0.00049315,120]
[378812399,1755033054822,-400.0,0.00049315,120]
[378812400,1755033054831,-976.58,0.00049315,120]
[378812401,1755033054840,-400.0,0.00049315,120]
[378812402,1755033054849,-705.12,0.00049315,120]
[378812403,1755033054861,-400.0,0.00049315,120]
[378812404,1755033054870,-1103.02,0.00049315,120]
[378812405,1755033054879,-406.52454284,0.00049315,120]
[378812406,1755033054890,-400.0,0.00049315,120]
[378812407,1755033054899,-400.0,0.00049315,120]
[378812408,1755033054908,-1002.27,0.00049315,120]
[378812409,1755033054918,-198.508529,0.00049315,30]
[378812410,1755033054928,-401.75785931,0.00049315,120]
[378812411,1755033054938,-151.0,0.00049315,30]
[378812412,1755033054948,-500.0,0.00049315,120]
[378812413,1755033054958,-500.0,0.00049315,120]
[378812414,1755033054967,-400.0,0.00049315,120]
[378812415,1755033054976,-400.0,0.00049315,120]
[378812416,1755033055053,-500.0,0.00049315,120]
[378812417,1755033055063,-500.0,0.00049315,120]
[378812418,1755033055072,-500.0,0.00049315,120]
[378812419,1755033055081,-500.0,0.00049315,120]
[378812420,1755033055090,-590.36,0.00049315,120]
[378812421,1755033055099,-500.0,0.00049315,120]
[378812422,1755033055108,-500.0,0.00049315,120]
[378812423,1755033055117,-400.0,0.00049315,120]
[378812424,1755033055127,-500.0,0.00049315,120]
[378812425,1755033055137,-400.0,0.00049315,120]
[378812426,1755033055147,-400.0,0.00049315,30]
[378812427,1755033055157,-322.07,0.00049315,120]
[378812428,1755033055167,-400.0,0.00049315,120]
[378812429,1755033055176,-460.0,0.00049315,120]
[378812430,1755033055186,-400.0,0.00049315,120]
[378812431,1755033055196,-1143.69,0.00049315,120]
[378812432,1755033055206,-400.0,0.00049315,120]
[378812433,1755033055215,-400.0,0.00049315,120]
[378812434,1755033055224,-564.58,0.00049315,120]
[378812435,1755033055233,-513.29,0.00049315,120]
[378812436,1755033055242,-400.0,0.00049315,120]
[378812437,1755033055251,-576.69,0.00049315,120]
[378812438,1755033055260,-400.0,0.00049315,120]
[378812439,1755033055270,-400.0,0.00049315,120]
[378812440,1755033055279,-440.55,0.00049315,120]
[378812441,1755033055287,-561.69,0.00049315,120]
[378812442,1755033055297,-400.0,0.00049315,120]
[378812443,1755033055311,-680.06,0.00049315,120]
[378812444,1755033055332,-400.0,0.00049315,120]
[378812445,1755033055341,-400.0,0.00049315,120]
[378812446,1755033055351,-400.0,0.00049315,120]
[378812447,1755033055363,-400.0,0.00049315,120]
[378812448,1755033055371,-400.0,0.00049315,120]
[378812449,1755033055380,-400.0,0.00049315,120]
[378812450,1755033055390,-402.06,0.00049315,120]
[378812451,1755033055401,-518.40551483,0.00049315,120]
[378812452,1755033055410,-500.0,0.00049315,120]
[378812453,1755033055419,-400.0,0.00049315,120]
[378812454,1755033055428,-400.0,0.00049315,120]
[378812455,1755033055437,-500.0,0.00049315,120]
[378812456,1755033055446,-500.0,0.00049315,120]
[378812457,1755033055455,-400.0,0.00049315,120]
[378812458,1755033055464,-400.0,0.00049315,120]
[378812459,1755033055473,-500.0,0.00049315,120]
[378812460,1755033055483,-500.0,0.00049315,120]
[378812461,1755033055492,-400.0,0.00049315,120]
[378812462,1755033055501,-794.77,0.00049315,120]
[378812463,1755033055510,-500.0,0.00049315,120]
[378812464,1755033055520,-400.0,0.00049315,120]
[378812465,1755033055530,-500.0,0.00049315,120]
[378812466,1755033055539,-400.0,0.00049315,120]
[378812467,1755033055548,-400.0,0.00049315,120]
[378812468,1755033055558,-417.88,0.00049315,120]
[378812469,1755033055567,-400.0,0.00049315,120]
[378812470,1755033055581,-984.91,0.00049315,120]
[378812471,1755033055594,-836.95,0.00049315,120]
[378812472,1755033055603,-401.53858083,0.00049315,120]
[378812473,1755033055613,-400.0,0.00049315,120]
[378812474,1755033055622,-705.63,0.00049315,120]
[378812475,1755033055631,-400.0,0.00049315,120]
[378812476,1755033055641,-529.2991355,0.00049315,120]
[378812477,1755033055651,-401.87842402,0.00049315,120]
[378812478,1755033055660,-400.0,0.00049315,120]
[378812479,1755033055669,-400.0,0.00049315,120]
[378812480,1755033055680,-400.0,0.00049315,120]
[378812481,1755033055689,-400.0,0.00049315,120]
[378812482,1755033055699,-400.0,0.00049315,120]
[378812483,1755033055708,-2000.0,0.00049315,30]
[378812484,1755033055719,-400.0,0.00049315,120]
[378812485,1755033055729,-400.0,0.00049315,120]
[378812486,1755033055740,-400.0,0.00049315,120]
[378812487,1755033055750,-400.0,0.00049315,120]
[378812488,1755033055760,-584.67,0.00049315,120]
[378812489,1755033055770,-400.0,0.00049315,120]
[378812490,1755033055779,-151.0,0.00049315,30]
[378812491,1755033055789,-400.0,0.00049315,120]
[378812492,1755033055798,-400.0,0.00049315,120]
[378812493,1755033055807,-400.0,0.00049315,120]
[378812494,1755033055818,-400.0,0.00049315,120]
[378812495,1755033055829,-648.3,0.00049315,120]
[378812496,1755033055838,-400.0,0.00049315,120]
[378812497,1755033055849,-400.0,0.00049315,120]
[378812498,1755033055858,-400.0,0.00049315,120]
[378812499,1755033055867,-400.0,0.00049315,120]
[378812500,1755033055876,-400.0,0.00049315,7]
[378812501,1755033055886,-400.0,0.00049315,120]
[378812502,1755033055895,-400.0,0.00049315,120]
[378812503,1755033055905,-400.0,0.00049315,120]
[378812504,1755033055914,-400.0,0.00049315,120]
[378812505,1755033055923,-643.0,0.00049315,120]
[378812506,1755033055933,-400.0,0.00049315,120]
[378812507,1755033055942,-400.0,0.00049315,120]
[378812508,1755033055951,-400.0,0.00049315,120]
[378812509,1755033055959,-400.0,0.00049315,120]
[378812510,1755033055968,-400.0,0.00049315,120]
[378812511,1755033055977,-400.0,0.00049315,120]
[378812512,1755033055986,-607.97,0.00049315,120]
[378812513,1755033055995,-400.0,0.00049315,120]
[378812514,1755033056004,-400.0,0.00049315,120]
[378812515,1755033056013,-400.0,0.00049315,120]
[378812516,1755033056023,-460.0,0.00049315,120]
[378812517,1755033056031,-500.0,0.00049315,120]
[378812518,1755033056041,-500.0,0.00049315,120]
[378812519,1755033056050,-500.0,0.00049315,120]
[378812520,1755033056059,-400.0,0.00049315,120]
[378812521,1755033056067,-400.0,0.00049315,120]
[378812522,1755033056076,-462.32565341,0.00049315,120]
[378812523,1755033056085,-500.0,0.00049315,120]
[378812524,1755033056094,-400.0,0.00049315,120]
[378812525,1755033056103,-400.0,0.00049315,120]
[378812526,1755033056113,-500.0,0.00049315,120]
[378812527,1755033056122,-310.55897993,0.00049315,120]
[378812528,1755033056131,-400.98589503,0.00049315,120]
[378812529,1755033056140,-151.0,0.00049315,30]
[378812530,1755033056149,-400.0,0.00049315,120]
[378812531,1755033056159,-620.14,0.00049315,120]
[378812532,1755033056169,-400.0,0.00049315,120]
[378812533,1755033056179,-531.84,0.00049315,120]
[378812534,1755033056188,-503.88421558,0.00049315,120]
[378812535,1755033056197,-400.0,0.00049315,120]
[378812536,1755033056206,-400.0,0.00049315,120]
[378812537,1755033056216,-400.0,0.00049315,120]
[378812538,1755033056226,-400.0,0.00049315,120]
[378812539,1755033056238,-401.46664106,0.00049315,120]
[378812540,1755033056247,-400.0,0.00049315,120]
[378812541,1755033056256,-400.0,0.00049315,120]
[378812542,1755033056266,-400.0,0.00049315,120]
[378812543,1755033056275,-400.0,0.00049315,120]
[378812544,1755033056284,-400.0,0.00049315,120]
[378812545,1755033056293,-400.0,0.00049315,120]
[378812546,1755033056308,-729.73,0.00049315,120]
[378812547,1755033056317,-400.0,0.00049315,120]
[378812548,1755033056328,-400.0,0.00049315,120]
[378812549,1755033056338,-451.77,0.00049315,120]
[378812550,1755033056348,-464.5229459,0.00049315,120]
[378812551,1755033056357,-400.0,0.00049315,120]
[378812552,1755033056366,-400.0,0.00049315,120]
[378812553,1755033056377,-400.0,0.00049315,120]
[378812554,1755033056386,-1034.91,0.00049315,120]
[378812555,1755033056395,-400.0,0.00049315,120]
[378812556,1755033056404,-400.0,0.00049315,120]
[378812557,1755033056413,-400.0,0.00049315,120]
[378812558,1755033056422,-460.0,0.00049315,60]
[378812559,1755033056431,-401.03466314,0.00049315,120]
[378812560,1755033056440,-400.0,0.00049315,120]
[378812561,1755033056450,-400.0,0.00049315,120]
[378812562,1755033056459,-400.0,0.00049315,120]
[378812563,1755033056468,-400.0,0.00049315,120]
[378812564,1755033056478,-413.64,0.00049315,120]
[378812565,1755033056487,-400.0,0.00049315,120]
[378812566,1755033056495,-400.0,0.00049315,120]
[378812567,1755033056504,-400.0,0.00049315,120]
[378812568,1755033056514,-400.0,0.00049315,120]
[378812569,1755033056523,-400.0,0.00049315,120]
[378812570,1755033056534,-611.43,0.00049315,120]
[378812571,1755033056543,-401.79893374,0.00049315,120]
[378812572,1755033056552,-400.0,0.00049315,120]
[378812573,1755033056562,-400.0,0.00049315,120]
[378812574,1755033056572,-400.0,0.00049315,120]
[378812575,1755033056581,-400.0,0.00049315,90]
[378812576,1755033056590,-641.45,0.00049315,120]
[378812577,1755033056599,-400.0,0.00049315,120]
[378812578,1755033056609,-400.0,0.00049315,120]
[378812579,1755033056618,-400.0,0.00049315,120]
[378812580,1755033056628,-400.0,0.00049315,120]
[378812581,1755033056637,-400.0,0.00049315,120]
[378812582,1755033056646,-400.0,0.00049315,120]
[378812583,1755033056655,-622.10085232,0.00049315,120]
[378812584,1755033121819,300.0,0.00027539,120]
[378812586,1755033833667,169.95,0.00013699,2]
[378812588,1755033911395,4935.86426011,0.000154,2]
[378812589,1755033959204,1979.81573752,0.00018999,5]
[378812592,1755033966582,179.19619153,0.00015,2]
[378812593,1755034029444,366.43436702,0.00015,2]
[378812594,1755034032994,219.9384493,0.00015,2]
[378812595,1755034060097,600.0,0.000188,6]
[378812596,1755034062234,1300.0,0.000189,6]
[378812597,1755034070744,555.8293107,0.00013,2]
[378812598,1755034091830,731.12074344,0.0001439,2]
[378812599,1755034093336,200.0,0.0001634,2]
[378812600,1755034117346,497.31217578,0.000154,2]
[378812601,1755034120993,10353.46969726,0.00013368,2]
[378812604,1755034151114,-162.74050566,0.00017899,2]
[378812605,1755034151135,-355.76407926,0.00017999,2]
[378812606,1755034151157,-91.4169444,0.00017999,2]
[378812607,1755034191024,150.0,0.00025953,120]
[378812608,1755034202508,2134.18421855,0.0002,4]
[378812614,1755034231899,-585.40621148,0.000179,2]
[378812615,1755034231908,-124.94571202,0.0001799,2]
[378812616,1755034231919,-927.61514,0.0001799,2]
[378812617,1755034231930,-1882.45914798,0.0001799,2]
[378812618,1755034231940,-1200.0,0.00017999,2]
[378812619,1755034231949,-550.0,0.00017999,2]
[378812620,1755034231958,-300.0,0.00017999,2]
[378812621,1755034231967,-408.5830556,0.00017999,2]
[378812622,1755034231977,-500.0,0.00017999,2]
[378812623,1755034231986,-200.8922317,0.00017999,2]
[378812624,1755034231995,-183.96710936,0.00017999,2]
[378812625,1755034232005,-19680.57074588,0.00018,2]
[378812626,1755034232024,-303.0399899,0.00018,2]
[378812627,1755034232035,-684.4179734,0.00018,2]
[378812628,1755034232047,-293133.18509277,0.00018,2]
[378812629,1755034232058,-31639.36596323,0.00018,2]
[378812630,1755034232067,-156.93594392,0.00018015,2]
[378812631,1755034232076,-196.99939483,0.000189,2]
[378812632,1755034232085,-500.0,0.00018973,2]
[378812633,1755034232094,-500.0,0.00018973,2]
[378812634,1755034232104,-500.0,0.00018973,2]
[378812635,1755034232113,-505.84558305,0.00018973,2]
[378812636,1755034232122,-2935.02,0.0001899,2]
[378812637,1755034232132,-172.05,0.0001899,2]
[378812638,1755034232142,-190.19372738,0.0001899,2]
[378812639,1755034232151,-1200.0,0.00018999,2]
[378812640,1755034232161,-300.0,0.00018999,2]
[378812641,1755034232170,-826059.11952586,0.00019,2]
[378812642,1755034232208,-44728.15585588,0.00019,2]
[378812643,1755034232227,-2530.23999999,0.00019,2]
[378812644,1755034232238,-591.348914,0.00019,2]
[378812645,1755034232256,-2435.08410106,0.00019,2]
[378812646,1755034232282,-45980.2377234,0.00019,2]
[378812647,1755034232293,-2174.65779542,0.00019,2]
[378812654,1755034237848,-521403.40207024,0.00019,2]
[378812655,1755034237858,-167888.84749705,0.00019,2]
[378812656,1755034237868,-300.0,0.00019079,2]
[378812657,1755034237878,-170.49537733,0.00019521,2]
[378812658,1755034237887,-658.0,0.00019735,2]
[378812659,1755034237897,-250.0,0.00019817,2]
[378812660,1755034237906,-1389.38334872,0.000225,2]
[378812661,1755034237916,-196.9993948,0.00022622,2]
[378812662,1755034237925,-309.47,0.00023,2]
[378812663,1755034237935,-13462.51435724,0.00024,5]
[378812664,1755034237944,-150.0,0.0002475,2]
[378812665,1755034237954,-257243.359407,0.000248,2]
[378812666,1755034237964,-23900.0,0.0002485,2]
[378812667,1755034237974,-151.54805674,0.00024899,2]
[378812668,1755034237983,-334492.245563,0.000249,2]
[378812669,1755034237993,-1835.83,0.000249,7]
[378812670,1755034238002,-673.38,0.000249,2]
[378812671,1755034238011,-167.08467477,0.00024915,2]
[378812672,1755034238021,-167.98,0.00024918,2]
[378812673,1755034238030,-309.47,0.00025155,7]
[378812674,1755034238039,-150.0,0.00025953,2]
[378812675,1755034238049,-196.9993948,0.00026345,2]
[378812676,1755034238059,-150.0,0.00026363,2]
[378812677,1755034238068,-568.73982202,0.00026407,2]
[378812678,1755034238077,-309.47,0.00027367,7]
[378812679,1755034238086,-3748.83940298,0.0002739,2]
[378812680,1755034238095,-156.0360214,0.000274,2]
[378812681,1755034238104,-167.08467471,0.00027645,2]
[378812682,1755034238114,-654.401769,0.00028,60]
[378812683,1755034238123,-923.42,0.00028552,2]
[378812684,1755034238131,-309.47,0.00029579,30]
[378812685,1755034238141,-3385.16177253,0.0003,2]
[378812686,1755034238150,-399.999999,0.0003,2]
[378812687,1755034238159,-196.9993948,0.00030067,15]
[378812688,1755034238168,-33676.69046757,0.0003013,60]
[378812689,1755034238177,-406.57745121,0.0003013,2]
[378812690,1755034238186,-167.08467471,0.00030376,2]
[378812692,1755034238195,-673.38,0.000304,2]
[378812694,1755034238204,-250.0,0.000308,30]
[378812696,1755034238213,-2000.0,0.000309,11]
[378812698,1755034238223,-1835.83,0.000309,7]
[378812700,1755034238232,-2283.49,0.00031,30]
[378812702,1755034238241,-186946.36909952,0.00031,120]
[378812703,1755034238250,-457.93703655,0.00031636,2]
[378812705,1755034238259,-309.47,0.0003179,30]
[378812707,1755034238268,-161.28,0.00031911,2]
[378812709,1755034238277,-999.99,0.00032232,2]
[378812711,1755034238286,-206.44,0.00033007,7]
[378812713,1755034238295,-167.08467471,0.00033106,2]
[378812715,1755034238304,-448.77,0.00033334,2]
[378812717,1755034238313,-196.9993948,0.0003379,15]
[378812719,1755034238322,-6081.49,0.00033821,2]
[378812721,1755034238331,-309.47,0.00034002,30]
[378812723,1755034238340,-4543.96,0.00035,2]